bitfinex/quotes_SOLUSD_20240705
["timestamp","ask_amount","ask_price","bid_price","bid_amount"]
[1720182539199,0.8593175,131.27,131.26,20.0]
[1720182539661,0.8593175,131.27,131.26,43.0]
[1720182539868,0.8593175,131.27,131.26,20.0]
[1720182540167,0.8593175,131.27,131.25,100.0]
[1720182540368,0.8593175,131.27,131.26,20.0]
[1720182540681,0.8593175,131.27,131.23,484.7]
[1720182540891,0.8593175,131.27,131.25,100.0]
[1720182541199,0.8593175,131.27,131.23,484.7]
[1720182541409,0.8593175,131.27,131.25,100.0]
[1720182541996,0.8593175,131.27,131.26,20.0]
[1720182542193,0.8593175,131.27,131.26,43.0]
[1720182542570,0.8593175,131.27,131.26,20.0]
[1720182542990,7.9593376,131.38,131.31,100.0]
[1720182543185,0.8593175,131.4,131.33,100.0]
[1720182543512,0.8593175,131.4,131.37,100.0]
[1720182544408,0.8593175,131.4,131.34,448.7]
[1720182544572,0.8593175,131.4,131.34,571.7]
[1720182544997,0.8593175,131.4,131.37,100.0]
[1720182545228,0.8593175,131.4,131.37,123.0]
[1720182545409,0.8593175,131.4,131.38,20.0]
[1720182546908,0.8593175,131.4,131.37,20.0]
[1720182547221,7.95511103,131.48,131.38,100.0]
[1720182547416,1.83716758,131.5,131.39,20.0]
[1720182548511,1.83716758,131.5,131.42,100.0]
[1720182548718,1.83716758,131.5,131.43,20.0]
[1720182549020,1.83716758,131.5,131.4,100.0]
[1720182549231,1.83716758,131.5,131.41,20.0]
[1720182549530,1.83716758,131.5,131.39,404.7]
[1720182549746,1.83716758,131.5,131.4,100.17]
[1720182549900,1.83716758,131.5,131.41,20.0]
[1720182550401,1.83716758,131.5,131.38,6.00030126]
[1720182550720,1.83716758,131.5,131.35,584.7]
[1720182551028,1.83716758,131.5,131.4,100.0]
[1720182551319,1.83716758,131.5,131.41,100.0]
[1720182551515,1.83716758,131.5,131.4,53.54]
[1720182551714,1.83716758,131.5,131.44,100.0]
[1720182552113,1.83716758,131.5,131.45,20.0]
[1720182552335,1.83716758,131.5,131.43,20.0]
[1720182552524,1.83716758,131.5,131.41,20.0]
[1720182553231,9.44176758,131.5,131.41,20.0]
[1720182553443,0.17,131.49,131.37,100.0]
[1720182553733,0.17,131.49,131.35,484.7]
[1720182553941,0.17,131.49,131.39,100.0]
[1720182554436,0.17,131.49,131.37,100.0]
[1720182554751,1.83716758,131.5,131.35,384.7]
[1720182555041,1.83716758,131.5,131.38,100.0]
[1720182555223,1.83716758,131.5,131.4,100.0]
[1720182556048,1.83716758,131.5,131.41,20.0]
[1720182556248,1.83716758,131.5,131.42,123.0]
[1720182556540,1.83716758,131.5,131.43,20.0]
[1720182556942,1.83716758,131.5,131.4,484.7]
[1720182557122,1.83716758,131.5,131.41,20.0]
[1720182557844,0.17,131.49,131.41,20.0]
[1720182558940,0.17,131.49,131.42,100.0]
[1720182559137,1.83716758,131.5,131.42,100.0]
[1720182559441,1.83716758,131.5,131.43,45.0]
[1720182559641,1.83716758,131.5,131.43,65.0]
[1720182559832,1.83716758,131.5,131.44,100.0]
[1720182560150,1.83716758,131.5,131.45,45.0]
[1720182560649,1.83716758,131.5,131.46,100.0]
[1720182560859,1.83716758,131.5,131.47,45.0]
[1720182561038,1.83716758,131.5,131.47,145.0]
[1720182561542,1.83716758,131.5,131.49,100.0]
[1720182561744,1.83716758,131.5,131.47,145.0]
[1720182562041,1.83716758,131.5,131.47,45.0]
[1720182563154,1.83716758,131.5,131.48,123.0]
[1720182563354,1.65656758,131.5,131.49,43.0]
[1720182563527,1.47596758,131.5,131.49,43.0]
[1720182563726,1.47596758,131.5,131.49,20.0]
[1720182564026,1.47596758,131.5,131.47,45.0]
[1720182564225,1.47596758,131.5,131.47,68.0]
[1720182564553,1.47596758,131.5,131.47,45.0]
[1720182565133,1.47596758,131.5,131.49,100.0]
[1720182565441,1.47596758,131.5,131.49,123.0]
[1720182565662,1.47596758,131.5,131.42,110.9657956]
[1720182565959,1.47596758,131.5,131.41,100.0]
[1720182566166,1.47596758,131.5,131.46,100.0]
[1720182566328,1.47596758,131.5,131.43,100.0]
[1720182566329,1.47596758,131.5,131.45,23.0]
[1720182566529,1.47596758,131.5,131.45,223.0]
[1720182566735,1.47596758,131.5,131.46,123.0]
[1720182567051,1.47596758,131.5,131.48,23.0]
[1720182567225,1.47596758,131.5,131.41,438.24]
[1720182567226,1.47596758,131.5,131.46,100.0]
[1720182567432,1.47596758,131.5,131.47,23.0]
[1720182567652,1.47596758,131.5,131.47,43.0]
[1720182568164,1.47596758,131.5,131.49,23.0]
[1720182568368,1.47596758,131.5,131.49,43.0]
[1720182568533,1.47596758,131.5,131.46,23.0]
[1720182568733,1.47596758,131.5,131.46,123.0]
[1720182568964,1.47596758,131.5,131.48,123.0]
[1720182569264,1.47596758,131.5,131.46,100.0]
[1720182569562,1.47596758,131.5,131.47,23.0]
[1720182569762,1.47596758,131.5,131.49,123.0]
[1720182569928,1.47596758,131.5,131.49,143.0]
[1720182570635,1.47596758,131.5,131.49,120.0]
[1720182571251,1.47596758,131.5,131.49,20.0]
[1720182571431,1.47596758,131.5,131.48,43.0]
[1720182572136,1.47596758,131.5,131.49,100.0]
[1720182572345,1.47596758,131.5,131.49,120.0]
[1720182573231,1.47596758,131.5,131.49,143.0]
[1720182573655,1.47596758,131.5,131.49,20.0]
[1720182573839,1.47596758,131.5,131.49,43.0]
[1720182574228,1.47596758,131.5,131.49,20.0]
[1720182574452,1.47596758,131.5,131.48,20.0]
[1720182574749,1.47596758,131.5,131.49,123.0]
[1720182574936,1.0593175,131.54,131.49,123.0]
[1720182574937,1.0593175,131.54,131.51,100.0]
[1720182575854,1.0593175,131.54,131.49,120.0]
[1720182576058,1.0593175,131.54,131.5,20.0]
[1720182576831,1.0593175,131.54,131.51,100.0]
[1720182577046,1.0593175,131.54,131.52,20.0]
[1720182577352,1.0593175,131.54,131.53,100.0]
[1720182577854,1.0593175,131.54,131.52,20.0]
[1720182578155,1.0593175,131.54,131.53,123.0]
[1720182578654,1.0593175,131.54,131.53,20.0]
[1720182579051,1.0593175,131.54,131.52,20.0]
[1720182579238,1.0593175,131.54,131.52,43.0]
[1720182579429,1.0593175,131.54,131.52,20.0]
[1720182579636,1.0593175,131.54,131.52,43.0]
[1720182579831,1.0593175,131.54,131.52,20.0]
[1720182580036,1.0593175,131.54,131.49,100.0]
[1720182580644,1.0593175,131.54,131.5,23.0]
[1720182580864,1.0593175,131.54,131.52,23.0]
[1720182581559,1.0593175,131.54,131.5,100.0]
[1720182581560,1e-08,131.54,131.53,20.0]
[1720182581732,1e-08,131.54,131.53,43.0]
[1720182581934,1e-08,131.54,131.53,20.0]
[1720182582144,1e-08,131.54,131.52,20.0]
[1720182582350,1e-08,131.54,131.53,100.0]
[1720182582554,1e-08,131.54,131.53,120.0]
[1720182582761,1e-08,131.54,131.53,143.0]
[1720182582956,1e-08,131.54,131.53,120.0]
[1720182583537,1e-08,131.54,131.53,20.0]
[1720182583743,1e-08,131.54,131.52,23.0]
[1720182583965,1e-08,131.54,131.53,20.0]
[1720182584167,1e-08,131.54,131.53,120.0]
[1720182584367,0.1,131.59,131.55,100.0]
[1720182584571,0.1,131.59,131.53,120.0]
[1720182584973,0.1,131.59,131.53,143.0]
[1720182585152,0.1,131.59,131.49,11.1882626]
[1720182585355,0.1,131.59,131.51,100.0]
[1720182585558,0.1,131.59,131.53,100.0]
[1720182585757,0.1,131.59,131.54,23.0]
[1720182586252,0.1,131.59,131.55,100.0]
[1720182587275,0.1,131.59,131.52,100.0]
[1720182587574,0.1,131.59,131.54,100.0]
[1720182588273,0.1,131.59,131.53,43.0]
[1720182588454,0.1,131.59,131.53,20.0]
[1720182588767,0.1,131.59,131.54,100.0]
[1720182588984,0.1,131.59,131.54,123.0]
[1720182589277,0.1,131.59,131.56,100.0]
[1720182589752,0.1,131.59,131.54,123.0]
[1720182590147,0.1,131.59,131.56,100.0]
[1720182590350,0.1,131.59,131.52,100.0]
[1720182590351,0.1,131.59,131.55,23.0]
[1720182590549,0.1,131.59,131.55,123.0]
[1720182590848,0.1,131.59,131.58,7.5999]
[1720182591288,0.1,131.59,131.55,123.0]
[1720182591650,0.1,131.59,131.58,7.5999]
[1720182591960,0.1,131.59,131.51,20.0]
[1720182591961,0.1,131.59,131.53,123.0]
[1720182592149,0.1,131.59,131.57,7.6002]
[1720182592657,0.1,131.59,131.58,7.5999]
[1720182592861,0.1,131.59,131.55,100.0]
[1720182593063,0.1,131.59,131.55,123.0]
[1720182593369,0.1,131.59,131.57,100.0]
[1720182593623,0.1,131.59,131.51,120.0]
[1720182593871,0.1,131.59,131.49,127.41701613]
[1720182594085,0.1,131.59,131.54,7.6021]
[1720182594278,0.1,131.59,131.52,7.6028]
[1720182594567,0.1,131.59,131.53,7.6026]
[1720182594970,0.1,131.59,131.54,7.6021]
[1720182595272,0.1,131.59,131.49,111.1882626]
[1720182595565,15.0,131.64,131.54,7.6021]
[1720182595881,0.17,131.63,131.56,7.601]
[1720182596255,0.17,131.63,131.53,100.0]
[1720182596760,7.597,131.63,131.53,100.0]
[1720182596956,7.597,131.63,131.55,7.6016]
[1720182597183,15.53974392,131.63,131.55,7.6016]
[1720182597777,7.94274392,131.63,131.51,23.0]
[1720182597984,7.94274392,131.63,131.54,100.0]
[1720182598301,15.54024392,131.63,131.55,7.6016]
[1720182598485,7.94274392,131.63,131.57,7.6004]
[1720182598682,6.60867916,131.67,131.58,7.5999]
[1720182598866,7.5964,131.64,131.55,7.6012]
[1720182599067,0.17,131.63,131.49,11.1882626]
[1720182599296,0.17,131.63,131.5,100.0]
[1720182599494,7.7671,131.63,131.55,7.6015]
[1720182599793,7.7671,131.63,131.5,100.0]
[1720182599794,0.17,131.63,131.5,100.0]
[1720182600089,7.5988,131.6,131.47,23.0]
[1720182600300,0.17,131.59,131.52,7.6032]
[1720182600485,7.94308354,131.64,131.5,100.0]
[1720182600676,0.17,131.63,131.5,100.0]
[1720182601279,7.5977,131.62,131.54,7.602]
[1720182601473,7.94308354,131.64,131.5,23.0]
[1720182601474,7.94308354,131.64,131.62,7.5975]
[1720182601677,0.5293175,131.67,131.6,7.5985]
[1720182601896,0.5293175,131.67,131.42,30.0]
[1720182601897,7.6022,131.54,131.42,15.0]
[1720182602099,45.9,131.64,131.42,12.3776]
[1720182602397,43.74,131.43,131.35,27.06999783]
[1720182602599,34.019,131.45,131.2,100.0]
[1720182602777,15.0,131.37,131.14,100.0]
[1720182603097,22.35,131.36,131.17,6.14013747]
[1720182603307,7.6231,131.18,131.17,3.747e-05]
[1720182603596,7.6231,131.18,130.94,31.3273675]
[1720182603597,15.0,131.15,130.94,31.3273675]
[1720182603775,7.6334,131.01,130.94,0.8593175]
[1720182603975,0.85935497,131.06,130.94,0.8593175]
[1720182604198,0.85935497,131.06,130.81,132.89722936]
[1720182604199,7.6405,130.88,130.81,100.0]
[1720182604406,111.23242416,131.07,130.84,2.13348997]
[1720182604407,19.0789,131.04,130.84,2.13348997]
[1720182604577,38.91639733,130.87,130.78,42.18149787]
[1720182604778,38.2462,130.74,130.63,27.36007099]
[1720182604974,15.0,130.66,130.41,100.0]
[1720182605193,24.76498011,130.65,130.56,24.0768479]
[1720182605398,119.88502216,130.64,130.56,1.0768479]
[1720182605605,7.6587,130.57,130.56,1.0768479]
[1720182605803,7.6587,130.57,130.37,0.04545085]
[1720182605804,20.0,130.57,130.43,100.0]
[1720182605972,55.06318979,130.67,130.47,100.0]
[1720182605973,21.41437449,130.63,130.47,100.0]
[1720182606173,21.41437449,130.63,130.37,0.04545085]
[1720182606174,121.41437449,130.63,130.37,0.04545085]
[1720182606398,145.0,130.62,130.37,0.04545085]
[1720182606598,100.0,130.5,130.37,0.04545085]
[1720182606838,100.0,130.68,130.4,11.13087662]
[1720182606987,111.48804796,130.74,130.41,74.25791097]
[1720182607173,100.0,130.68,130.41,19.38292813]
[1720182607384,11.48804796,130.74,130.67,108.92]
[1720182607688,11.49350064,130.79,130.73,54.46]
[1720182607888,11.49350064,130.79,130.77,7.6465]
[1720182608112,100.0,130.97,130.85,7.6423]
[1720182608291,38.27886475,131.07,130.85,26.1808631]
[1720182608292,100.0,131.0,130.85,26.1808631]
[1720182608487,0.17,131.07,130.97,7.6353]
[1720182608692,0.17,131.07,131.06,7.63]
[1720182608894,0.17,131.07,130.86,1.3]
[1720182609101,0.17,131.07,131.05,7.6306]
[1720182609320,1.0768479,131.14,130.87,100.0]
[1720182609321,100.0,131.12,130.87,100.0]
[1720182609496,100.0,131.12,130.91,100.0]
[1720182609686,100.0,131.11,130.79,100.0]
[1720182609882,100.0,131.11,130.62,3.24219215]
[1720182609883,100.0,131.11,130.84,200.0]
[1720182610193,19.2305,131.17,130.85,45.0]
[1720182610194,9.14284702,131.15,130.85,45.0]
[1720182610388,100.0,131.16,130.89,100.0]
[1720182610589,16.30915391,131.15,130.9,99.63]
[1720182610793,100.0,131.1,130.9,0.17]
[1720182611095,6.44032488,131.09,130.9,0.17]
[1720182611298,1.76241805,131.14,131.1,7.6276]
[1720182611615,1.76241805,131.14,130.23,15.17284078]
[1720182611616,1.76241805,131.14,131.01,100.0]
[1720182611789,1.76241805,131.14,130.97,100.0]
[1720182611790,1.76241805,131.14,130.97,54.46]
[1720182611990,1.76241805,131.14,131.07,54.46]
[1720182612210,0.8291853,131.23,131.1,100.0]
[1720182612427,0.8291853,131.23,131.19,54.46]
[1720182612735,0.8291853,131.23,131.11,45.0]
[1720182612910,0.8291853,131.23,131.19,54.46]
[1720182613106,0.8291853,131.23,131.2,45.0]
[1720182613304,0.8291853,131.23,131.09,100.0]
[1720182613501,0.8291853,131.23,131.19,100.0]
[1720182613731,15.0,131.38,131.2,119.46]
[1720182614033,15.0,131.38,131.11,54.46]
[1720182614034,15.0,131.37,131.11,54.46]
[1720182614202,15.0,131.26,131.08,54.46]
[1720182614400,15.0,131.26,130.79,11.33395493]
[1720182614401,15.0,131.21,130.99,100.0]
[1720182614707,15.0,131.27,131.1,54.46]
[1720182614932,15.0,131.27,131.04,54.46]
[1720182614933,15.0,131.25,131.17,7.6236]
[1720182615229,15.0,131.25,131.04,154.46]
[1720182615230,15.0,131.1,130.88,100.0]
[1720182615404,7.6255,131.14,131.02,7.6323]
[1720182615405,15.0,131.04,131.02,7.6323]
[1720182615599,15.0,131.04,130.75,4.18914888]
[1720182615600,15.0,131.08,131.03,7.6316]
[1720182615821,69.46,131.1,130.87,100.0]
[1720182616004,69.46,131.1,130.6,38.50524639]
[1720182616005,15.0,131.02,130.95,7.6359]
[1720182616201,54.46,130.96,130.63,38.65852423]
[1720182616522,54.46,130.85,130.63,54.46]
[1720182616705,7.6419,130.86,130.72,62.1093]
[1720182616902,0.17,130.92,130.85,7.6417]
[1720182617148,15.0,131.16,130.9,54.46]
[1720182617306,15.0,131.16,130.85,200.0]
[1720182617307,15.0,131.16,131.14,7.625]
[1720182617521,38.25242352,131.37,131.27,7.6174]
[1720182617733,38.25242352,131.37,131.33,54.46]
[1720182618042,1.6913826,131.49,131.33,54.46]
[1720182618223,1.6913826,131.49,131.24,100.0]
[1720182618224,100.0,131.65,131.46,53.91]
[1720182618425,20.47936135,131.78,131.58,53.91]
[1720182618742,7.5915,131.73,131.68,53.91]
[1720182619040,54.01,131.79,131.54,100.0]
[1720182619231,4.70837734,131.75,131.65,53.91]
[1720182619435,53.91,131.72,131.49,100.0]
[1720182619638,2.98957146,131.76,131.5,0.17]
[1720182619845,0.1,131.79,131.23,3.20075479]
[1720182620015,0.1,131.79,131.41,7.92860485]
[1720182620016,7.5988,131.6,131.41,7.92860485]
[1720182620340,100.0,131.72,131.42,0.17]
[1720182620535,0.1,131.79,131.5,51.43]
[1720182620536,76.6668,131.63,131.5,51.43]
[1720182620717,0.1,131.79,131.5,51.43]
[1720182620919,7.5889,131.78,131.49,51.43]
[1720182621121,0.1,131.79,131.57,51.43]
[1720182621341,0.1,131.79,131.56,100.0]
[1720182621522,0.1,131.79,131.59,100.0]
[1720182621727,0.1,131.79,131.54,100.0]
[1720182621728,0.1,131.79,131.55,100.0]
[1720182621919,100.0,131.87,131.71,51.43]
[1720182622119,0.1,131.89,131.81,100.0]
[1720182622327,0.1,131.89,131.61,16.06565793]
[1720182622530,0.1,131.89,131.72,100.0]
[1720182622531,0.9,131.84,131.72,100.0]
[1720182622741,0.9,131.78,131.62,3.035243]
[1720182622923,0.9,131.83,131.62,3.035243]
[1720182623124,0.9,131.83,131.37,37.78400134]
[1720182623125,0.9,131.67,131.42,100.0]
[1720182623419,7.5937,131.69,131.43,55.85]
[1720182623420,0.9,131.69,131.43,55.85]
[1720182623625,0.9,131.73,131.39,100.0]
[1720182623848,0.9,131.73,131.35,51.43]
[1720182623849,100.0,131.73,131.38,7.23116003]
[1720182624056,0.9,131.79,131.51,100.0]
[1720182624338,100.1,131.89,131.51,100.0]
[1720182624339,0.1,131.89,131.64,14.1]
[1720182624550,0.1,131.89,131.76,100.0]
[1720182624917,7.6821,131.89,131.65,100.0]
[1720182625123,0.1,131.89,131.67,100.0]
[1720182625338,0.1,131.89,131.87,100.0]
[1720182625339,0.0001,131.89,131.87,100.0]
[1720182625541,0.0001,131.89,131.8,60.44]
[1720182625542,0.0001,131.94,131.93,100.0]
[1720182625746,0.0001,131.94,131.8,60.44]
[1720182625747,1.0,131.99,131.83,100.0]
[1720182626049,3.034021,131.94,131.84,65.0]
[1720182626339,0.1,131.99,131.98,100.0]
[1720182626527,0.1,131.99,131.98,0.17]
[1720182626726,0.1,131.99,131.85,0.17]
[1720182626727,0.1,131.99,131.91,200.0]
[1720182626951,0.1,131.99,131.94,100.0]
[1720182627126,0.9,131.98,131.76,3.87344085]
[1720182627331,0.1,131.99,131.77,100.0]
[1720182627540,0.1,131.99,131.85,100.0]
[1720182627721,0.9,131.98,131.79,100.0]
[1720182628023,0.1,131.99,131.91,100.0]
[1720182628342,0.1,132.09,131.99,100.0]
[1720182628644,0.1,132.09,132.08,214.1]
[1720182628962,0.1,132.09,132.08,200.0]
[1720182629251,0.1,132.09,132.08,100.0]
[1720182629433,0.42752815,132.11,132.1,100.0]
[1720182629630,0.9,132.27,132.1,265.0]
[1720182629836,0.5,132.32,132.11,165.17]
[1720182630035,0.9,132.28,132.12,45.0]
[1720182630228,8.0577,132.32,132.11,20.0]
[1720182630229,0.5,132.32,132.11,120.0]
[1720182630453,1.0584406,132.19,132.16,100.0]
[1720182630764,1.0584406,132.19,132.17,20.0]
[1720182630927,1.0584406,132.19,132.18,45.0]
[1720182631134,1.0584406,132.19,132.13,100.0]
[1720182631327,1.0584406,132.19,132.14,100.0]
[1720182631556,0.9,132.27,132.15,45.0]
[1720182631728,0.1,132.29,132.18,100.0]
[1720182631927,0.1,132.29,132.19,45.0]
[1720182632163,0.1,132.29,132.16,100.0]
[1720182632459,0.1,132.29,132.28,100.0]
[1720182632630,0.5,132.32,132.28,100.0]
[1720182632631,0.5,132.32,132.31,100.0]
[1720182632826,0.5,132.32,132.31,200.17]
[1720182633027,0.2,132.34,132.33,200.0]
[1720182633329,0.1,132.49,132.38,100.0]
[1720182633330,0.9,132.46,132.38,100.0]
[1720182633658,0.9,132.46,132.38,145.0]
[1720182633943,0.1,132.49,132.41,200.0]
[1720182634146,0.1,132.49,132.41,245.17]
[1720182634339,1.0,132.59,132.5,100.0]
[1720182634732,0.9,132.54,132.48,100.0]
[1720182634929,0.9,132.49,132.43,100.0]
[1720182635126,0.9,132.49,132.47,100.0]
[1720182635346,0.1,132.59,132.58,100.0]
[1720182635550,0.1,132.59,132.58,120.17]
[1720182635734,0.1,132.59,132.58,200.17]
[1720182635936,0.1,132.59,132.55,100.0]
[1720182636141,0.1,132.59,132.53,200.0]
[1720182636544,0.1,132.59,132.48,100.0]
[1720182636748,0.9,132.58,132.51,100.0]
[1720182636930,0.9,132.52,132.48,100.0]
[1720182637138,0.1,132.59,132.54,100.0]
[1720182637328,0.04485829,132.62,132.61,200.0]
[1720182638146,0.1,132.69,132.67,200.0]
[1720182638357,0.2,132.74,132.73,200.0]
[1720182638524,0.2,132.74,132.73,241.32995133]
[1720182638729,0.2,132.74,132.73,21.15995133]
[1720182638959,0.2,132.74,132.49,37.84024386]
[1720182638960,0.2,132.74,132.7,100.0]
[1720182639253,0.2,132.74,132.66,100.0]
[1720182639461,0.2,132.74,132.65,10.66002655]
[1720182639462,0.2,132.74,132.7,100.0]
[1720182639629,0.2,132.74,132.69,100.0]
[1720182639830,0.2,132.74,132.71,100.0]
[1720182640028,0.1,132.89,132.72,55.85]
[1720182640248,0.1,132.89,132.78,200.0]
[1720182640570,0.1,132.89,132.72,66.85000704]
[1720182640571,0.1,132.89,132.79,10.99278482]
[1720182640861,7.17325399,132.88,132.72,10.39691292]
[1720182641067,0.1,132.89,132.58,9.59816597]
[1720182641068,7.17325399,132.76,132.58,9.59816597]
[1720182641252,60.44,132.87,132.53,100.0]
[1720182641253,160.44,132.87,132.53,100.0]
[1720182641460,37.6582,132.78,132.56,100.0]
[1720182641772,37.6582,132.78,132.48,100.0]
[1720182641928,37.6582,132.78,132.11,3.06572806]
[1720182641929,37.6582,132.78,132.52,100.0]
[1720182642129,7.54,132.63,132.51,7.5464]
[1720182642327,7.54,132.63,132.46,109.33873909]
[1720182642328,18.8501,132.63,132.48,100.0]
[1720182642549,18.8501,132.63,132.38,100.0]
[1720182642550,98.0982,132.78,132.45,100.0]
[1720182642860,7.5476,132.5,132.39,115.0]
[1720182643169,100.0,132.6,132.3,15.0]
[1720182643465,100.0,132.6,132.23,7.87491601]
[1720182643466,7.5551,132.37,132.28,100.0]
[1720182643641,18.8629,132.54,132.33,100.0]
[1720182643844,7.5477,132.49,132.38,107.5537]
[1720182644072,20.0,132.59,132.38,100.0]
[1720182644383,60.44,132.77,132.47,100.0]
[1720182644540,100.0,132.91,132.56,100.0]
[1720182644736,100.0,132.88,132.54,100.0]
[1720182644944,7.5372,132.68,132.56,7.5437]
[1720182645152,7.5372,132.68,132.33,37.76487608]
[1720182645153,37.6873,132.68,132.39,100.0]
[1720182645343,37.6873,132.68,132.35,100.0]
[1720182645656,7.5475,132.5,132.38,22.5539]
[1720182645865,37.6873,132.68,132.33,55.85]
[1720182645866,37.6873,132.68,132.45,100.0]
[1720182646040,37.6873,132.68,132.33,55.85]
[1720182646041,18.8455,132.66,132.46,1.74637853]
[1720182646239,18.8455,132.66,132.26,78.72556338]
[1720182646240,60.44,132.57,132.28,15.0]
[1720182646447,7.5562,132.35,132.3,15.0]
[1720182646645,7.5587,132.3,132.26,12.48907434]
[1720182646859,18.8871,132.37,132.2,12.48907434]
[1720182647072,64.11711299,132.48,132.25,12.48907434]
[1720182647264,65.17,132.47,132.23,12.48907434]
[1720182647463,0.17,132.47,132.28,12.48907434]
[1720182647648,37.7595,132.42,132.25,12.48907434]
[1720182647841,18.8863,132.38,132.28,12.48907434]
[1720182648038,37.7595,132.42,132.28,12.48907434]
[1720182648255,3.67711299,132.48,132.38,7.5537]
[1720182648490,18.8565,132.58,132.39,100.0]
[1720182648776,37.80642786,132.77,132.6,12.48907434]
[1720182648974,1.9138907,132.94,132.73,12.46906534]
[1720182649148,1.9138907,132.94,132.85,7.527]
[1720182649341,1.9138907,132.94,132.87,7.5258]
[1720182649541,1.9138907,132.94,132.68,15.0]
[1720182649542,7.5245,132.9,132.77,100.0]
[1720182649740,1.9138907,132.94,132.76,100.0]
[1720182650045,1.9138907,132.94,132.66,100.0]
[1720182650248,1.9138907,132.94,132.71,112.46906534]
[1720182650467,1.9138907,132.94,132.69,112.46906534]
[1720182650642,1.9138907,132.94,132.66,30.142157]
[1720182650842,1.9138907,132.94,132.64,100.0]
[1720182650843,10.5756185,132.92,132.64,100.0]
[1720182651149,12.4895092,132.94,132.64,100.0]
[1720182651346,18.8204,132.84,132.64,100.0]
[1720182651573,18.8256,132.8,132.63,3.015178]
[1720182651751,18.8256,132.8,132.47,103.22154219]
[1720182651752,2.53093466,132.75,132.47,100.0]
[1720182651948,2.53093466,132.75,132.31,4.11811287]
[1720182651949,60.44,132.77,132.44,100.0]
[1720182652150,18.8481,132.64,132.47,30.20283]
[1720182652358,7.5421,132.59,132.49,7.5474]
[1720182652673,18.8494,132.64,132.47,30.20283]
[1720182652674,40.22773466,132.64,132.47,30.20283]
[1720182652880,60.44,132.7,132.48,100.0]
[1720182653072,65.17,132.69,132.48,12.46906534]
[1720182653386,0.17,132.68,132.51,100.0]
[1720182653559,3.69737162,132.76,132.51,100.0]
[1720182653745,18.8159,132.87,132.69,7.5361]
[1720182653947,0.1,132.89,132.71,12.46906534]
[1720182654271,18.8213,132.83,132.71,12.46906534]
[1720182654575,0.1,132.89,132.83,7.5281]
[1720182654783,0.1,132.89,132.72,101.74295736]
[1720182654949,0.1,132.89,132.73,101.91282604]
[1720182655145,1.9138907,132.94,132.92,7.5228]
[1720182655347,1.9138907,132.94,132.92,7.5232]
[1720182655651,1.9138907,132.94,132.88,100.0]
[1720182655866,1.9138907,132.94,132.89,0.17]
[1720182656066,1.9138907,132.94,132.8,7.5298]
[1720182656283,1.9138907,132.94,132.77,100.0]
[1720182656765,1.9138907,132.94,132.85,7.5268]
[1720182656966,1.9138907,132.94,132.77,107.5315]
[1720182657168,1.9138907,132.94,132.75,12.46906534]